fUSD/lending_fUSD_20240103
["ID","MTS","AMOUNT","RATE_DAILY","PERIOD"]
[310004452,1704283953513,-151.40103,0.00033298,2]
[310004453,1704283953526,-8946.44524781,0.00033301,5]
[310004454,1704283953544,-500.0,0.00033308,10]
[310004455,1704283953555,-158.05,0.00033313,2]
[310004456,1704283953566,-150.0,0.00033315,2]
[310004457,1704283953578,-150.0,0.00033315,2]
[310004458,1704283953589,-150.0,0.00033315,2]
[310004459,1704283953600,-150.0,0.00033315,2]
[310004460,1704283953611,-150.0,0.00033315,2]
[310004461,1704283953626,-150.0,0.00033315,2]
[310004462,1704283953637,-150.0,0.00033315,2]
[310004463,1704283953653,-151.40103,0.00033398,2]
[310004464,1704283953664,-209.0,0.000334,2]
[310004465,1704283953676,-206.0,0.000334,2]
[310004466,1704283953687,-1105.24,0.00033423,3]
[310004467,1704283953699,-1500.0,0.00033448,7]
[310004468,1704283953710,-208.0,0.0003347,2]
[310004469,1704283953722,-208.0,0.0003347,2]
[310004470,1704283953735,-8946.44524781,0.00033476,5]
[310004471,1704283953746,-175.73,0.00033492,2]
[310004472,1704283953758,-151.40103,0.00033498,2]
[310004473,1704283953770,-1000.0,0.000335,7]
[310004474,1704283953787,-534.09,0.00033501,2]
[310004475,1704283953798,-166.0,0.00033526,2]
[310004476,1704283953809,-155.0,0.00033526,2]
[310004477,1704283953821,-189.0,0.00033526,2]
[310004478,1704283953833,-157.76,0.0003359,2]
[310004479,1704283953846,-151.40103,0.00033598,2]
[310004480,1704283953861,-150.71580004,0.00033603,2]
[310004481,1704283953873,-150.73200103,0.00033618,2]
[310004482,1704283953885,-981.12662,0.0003363,2]
[310004483,1704283953897,-151.0,0.00033636,7]
[310004484,1704283953909,-155.0,0.0003364,2]
[310004485,1704283953921,-8946.44524781,0.00033651,5]
[310004486,1704283953933,-153.84,0.00033654,2]
[310004487,1704283953944,-5000.0,0.00033676,2]
[310004488,1704283953956,-1105.24,0.00033697,3]
[310004489,1704283953968,-151.40103,0.00033698,2]
[310004490,1704283953980,-380.90749551,0.00033715,22]
[310004491,1704283953991,-158.05,0.00033758,2]
[310004492,1704283954003,-209.0,0.0003378,2]
[310004493,1704283954015,-206.0,0.0003378,2]
[310004494,1704283954032,-658.71,0.00033791,2]
[310004495,1704283954045,-151.40103,0.00033798,2]
[310004496,1704283954058,-4863.427527,0.000338,2]
[310004497,1704283954073,-159.56,0.00033815,2]
[310004498,1704283954085,-8946.44524781,0.00033825,6]
[310004499,1704283954098,-500.0,0.00033856,10]
[310004500,1704283954109,-500.0,0.00033856,7]
[310004501,1704283954121,-500.0,0.00033856,7]
[310004502,1704283954133,-150.0,0.00033863,2]
[310004503,1704283954145,-520.46,0.00033863,2]
[310004504,1704283954157,-520.46,0.00033863,2]
[310004505,1704283954169,-520.46,0.00033863,2]
[310004506,1704283954183,-277.53,0.00033863,2]
[310004507,1704283954195,-150.0,0.00033863,2]
[310004508,1704283954207,-150.0,0.00033863,2]
[310004509,1704283954219,-150.0,0.00033863,2]
[310004510,1704283954230,-150.0,0.00033863,2]
[310004511,1704283954242,-150.0,0.00033863,2]
[310004512,1704283954254,-150.0,0.00033863,2]
[310004513,1704283954266,-150.0,0.00033863,2]
[310004514,1704283954285,-150.0,0.00033863,2]
[310004515,1704283954296,-150.0,0.00033863,2]
[310004516,1704283954307,-150.0,0.00033863,2]
[310004517,1704283954319,-150.0,0.00033863,2]
[310004518,1704283954332,-150.0,0.00033863,2]
[310004519,1704283954385,-363.10125574,0.00033877,2]
[310004520,1704283954400,-208.0,0.0003388,2]
[310004521,1704283954412,-208.0,0.0003388,2]
[310004522,1704283954423,-151.40103,0.00033898,2]
[310004523,1704283954434,-254492.03872635,0.000339,2]
[310004524,1704283954445,-600.0,0.000339,12]
[310004525,1704283954456,-214.6189892,0.0003392,2]
[310004526,1704283954469,-300.0,0.00033957,2]
[310004527,1704283954480,-500.60089548,0.00033957,2]
[310004528,1704283954492,-1105.24,0.00033971,3]
[310004529,1704283954505,-565.04439,0.00033973,14]
[310004530,1704283954517,-151.40103,0.00033998,2]
[310004531,1704283954535,-100000.0,0.00034,4]
[310004532,1704283954549,-1000.0,0.00034,4]
[310004533,1704283954560,-417.27727,0.00034,2]
[310004534,1704283954572,-1000.0,0.00034,2]
[310004535,1704283954583,-424.7406981,0.00034,6]
[310004536,1704283954595,-10000.0,0.00034,4]
[310004537,1704283954607,-11039.33,0.00034,3]
[310004538,1704283954618,-1000.0,0.00034,4]
[310004539,1704283954629,-5000.0,0.00034,2]
[310004540,1704283954647,-500.0,0.00034,2]
[310004541,1704283954659,-997.0,0.00034,3]
[310004542,1704283954671,-2000.0,0.00034,2]
[310004543,1704283954683,-3000.0,0.00034,2]
[310004544,1704283954695,-450.0,0.00034,35]
[310004545,1704283954707,-1320.0,0.00034,7]
[310004546,1704283954718,-228.33,0.00034,2]
[310004547,1704283954729,-228.33,0.00034,2]
[310004548,1704283954741,-228.33,0.00034,2]
[310004549,1704283954753,-228.33,0.00034,2]
[310004550,1704283954765,-228.33,0.00034,2]
[310004551,1704283954777,-228.33,0.00034,2]
[310004552,1704283954788,-228.33,0.00034,2]
[310004553,1704283954800,-228.33,0.00034,2]
[310004554,1704283954810,-228.33,0.00034,2]
[310004555,1704283954822,-228.33,0.00034,2]
[310004556,1704283954833,-228.33,0.00034,2]
[310004557,1704283954844,-228.33,0.00034,2]
[310004558,1704283954856,-228.33,0.00034,2]
[310004559,1704283954867,-228.33,0.00034,2]
[310004560,1704283954879,-228.33,0.00034,2]
[310004561,1704283954892,-228.33,0.00034,2]
[310004562,1704283954903,-228.33,0.00034,2]
[310004563,1704283954913,-228.33,0.00034,2]
[310004564,1704283954924,-228.33,0.00034,2]
[310004565,1704283954935,-228.33,0.00034,2]
[310004566,1704283954945,-228.33,0.00034,2]
[310004567,1704283954957,-228.33,0.00034,2]
[310004568,1704283954968,-228.33,0.00034,2]
[310004569,1704283954979,-228.33,0.00034,2]
[310004570,1704283954990,-228.33,0.00034,2]
[310004571,1704283955004,-228.33,0.00034,2]
[310004572,1704283955015,-228.33,0.00034,2]
[310004573,1704283955029,-228.33,0.00034,2]
[310004574,1704283955041,-228.33,0.00034,2]
[310004575,1704283955053,-228.33,0.00034,2]
[310004576,1704283955064,-228.33,0.00034,2]
[310004577,1704283955075,-228.33,0.00034,2]
[310004578,1704283955089,-228.33,0.00034,2]
[310004579,1704283955100,-228.33,0.00034,2]
[310004580,1704283955112,-228.33,0.00034,2]
[310004581,1704283955123,-228.33,0.00034,2]
[310004582,1704283955134,-228.33,0.00034,2]
[310004583,1704283955145,-228.33,0.00034,2]
[310004584,1704283955156,-228.33,0.00034,2]
[310004585,1704283955169,-228.33,0.00034,2]
[310004586,1704283955180,-228.33,0.00034,2]
[310004587,1704283955193,-228.33,0.00034,2]
[310004588,1704283955204,-228.33,0.00034,2]
[310004589,1704283955215,-228.33,0.00034,2]
[310004590,1704283955227,-228.33,0.00034,2]
[310004591,1704283955238,-228.33,0.00034,2]
[310004592,1704283955249,-228.33,0.00034,2]
[310004593,1704283955261,-228.33,0.00034,2]
[310004594,1704283955272,-228.33,0.00034,2]
[310004595,1704283955287,-228.33,0.00034,2]
[310004596,1704283955298,-228.33,0.00034,2]
[310004597,1704283955310,-228.33,0.00034,2]
[310004598,1704283955321,-228.33,0.00034,2]
[310004599,1704283955332,-228.33,0.00034,2]
[310004600,1704283955343,-228.33,0.00034,2]
[310004601,1704283955354,-228.33,0.00034,2]
[310004602,1704283955365,-228.33,0.00034,2]
[310004603,1704283955376,-228.33,0.00034,2]
[310004604,1704283955388,-228.33,0.00034,2]
[310004605,1704283955398,-228.33,0.00034,2]
[310004606,1704283955409,-228.33,0.00034,2]
[310004607,1704283955422,-228.33,0.00034,2]
[310004608,1704283955434,-228.33,0.00034,2]
[310004609,1704283955445,-228.33,0.00034,2]
[310004610,1704283955457,-228.33,0.00034,2]
[310004611,1704283955469,-228.33,0.00034,2]
[310004612,1704283955480,-228.33,0.00034,2]
[310004613,1704283955491,-228.33,0.00034,2]
[310004614,1704283955502,-228.33,0.00034,2]
[310004615,1704283955514,-228.33,0.00034,2]
[310004616,1704283955527,-228.33,0.00034,2]
[310004617,1704283955544,-228.33,0.00034,2]
[310004618,1704283955555,-228.33,0.00034,2]
[310004619,1704283955567,-228.33,0.00034,2]
[310004620,1704283955579,-228.33,0.00034,2]
[310004621,1704283955590,-228.33,0.00034,2]
[310004622,1704283955601,-228.33,0.00034,2]
[310004623,1704283955612,-228.33,0.00034,2]
[310004624,1704283955629,-228.33,0.00034,2]
[310004625,1704283955642,-228.33,0.00034,2]
[310004626,1704283955653,-228.33,0.00034,2]
[310004627,1704283955665,-228.33,0.00034,2]
[310004628,1704283955676,-228.33,0.00034,2]
[310004629,1704283955686,-228.33,0.00034,2]
[310004630,1704283955698,-228.33,0.00034,2]
[310004631,1704283955710,-228.33,0.00034,2]
[310004632,1704283955722,-228.33,0.00034,2]
[310004633,1704283955733,-228.33,0.00034,2]
[310004634,1704283955744,-228.33,0.00034,2]
[310004635,1704283955755,-228.33,0.00034,2]
[310004636,1704283955767,-228.33,0.00034,2]
[310004637,1704283955780,-228.33,0.00034,2]
[310004638,1704283955791,-228.33,0.00034,2]
[310004639,1704283955802,-228.33,0.00034,2]
[310004640,1704283955813,-228.33,0.00034,2]
[310004641,1704283955824,-228.33,0.00034,2]
[310004642,1704283955835,-228.33,0.00034,2]
[310004643,1704283955846,-228.33,0.00034,2]
[310004644,1704283955858,-228.33,0.00034,2]
[310004645,1704283955868,-228.33,0.00034,2]
[310004646,1704283955879,-8946.44524781,0.00034,6]
[310004647,1704283955890,-175.73,0.0003404,2]
[310004648,1704283955902,-150.71580004,0.00034086,2]
[310004649,1704283955913,-151.40103,0.00034098,2]
[310004650,1704283955923,-153.822114,0.000341,2]
[310004651,1704283955938,-833.0,0.00034122,2]
[310004652,1704283955949,-1845.0,0.00034122,2]
[310004653,1704283955959,-530.22,0.00034122,2]
[310004654,1704283955970,-209.0,0.0003415,2]
[310004655,1704283955981,-206.0,0.0003415,2]
[310004656,1704283955991,-8946.44524781,0.00034175,6]
[310004657,1704283956002,-17247.6106465,0.00034177,2]
[310004658,1704283956014,-329.861092,0.00034177,2]
[310004659,1704283956026,-2295.1868699,0.00034177,2]
[310004660,1704283956040,-1886.3229394,0.00034177,2]
[310004661,1704283956051,-380.90749551,0.00034185,23]
[310004662,1704283956062,-151.40103,0.00034198,2]
[310004663,1704283956073,-96753.74502346,0.000342,2]
[310004664,1704283956084,-8000.0,0.000342,2]
[310004665,1704283956096,-456.122772,0.00034215,2]
[310004666,1704283956107,-199.070168,0.00034215,2]
[310004667,1704283956117,-467.327823,0.00034215,2]
[310004668,1704283956128,-456.073485,0.00034215,2]
[310004669,1704283956143,-228.036742,0.00034215,2]
[310004670,1704283956155,-1105.24,0.00034245,3]
[310004671,1704283956168,-313.4,0.00034255,2]
[310004672,1704283956179,-1000.0,0.00034263,7]
[310004673,1704283956190,-1000.0,0.00034263,7]
[310004674,1704283956201,-1000.0,0.00034263,7]
[310004675,1704283956212,-208.0,0.0003428,2]
[310004676,1704283956223,-208.0,0.0003428,2]
[310004677,1704283956234,-151.40103,0.00034298,2]
[310004678,1704283956248,-151.0,0.00034323,4]
[310004679,1704283956259,-8946.44524781,0.0003435,6]
[310004680,1704283956270,-159.56,0.00034367,2]
[310004681,1704283956283,-151.40103,0.00034398,2]
[310004682,1704283956294,-500.0,0.00034404,10]
[310004683,1704283956305,-1000.0,0.0003443,7]
[310004684,1704283956315,-252.971,0.0003444,2]
[310004685,1704283956327,-4178.0,0.0003444,2]
[310004686,1704283956338,-2265.0,0.0003444,2]
[310004687,1704283956351,-6078.363,0.0003444,2]
[310004688,1704283956361,-1026.0,0.0003444,2]
[310004689,1704283956372,-378.0296211,0.00034496,2]
[310004690,1704283956384,-79455.7623907,0.00034496,2]
[310004691,1704283956396,-8612.0607948,0.00034496,2]
[310004692,1704283956408,-151.40103,0.00034498,2]
[310004693,1704283956418,-1314.0,0.000345,2]
[310004694,1704283956429,-286.94105022,0.000345,3]
[310004695,1704283956441,-4999.99,0.000345,2]
[310004696,1704283956455,-10000.0,0.000345,10]
[310004697,1704283956466,-1105.24,0.00034519,3]
[310004698,1704283956477,-500.0,0.0003452,2]
[310004699,1704283956489,-29254.261237,0.0003452,2]
[310004700,1704283956500,-4262.670416,0.0003452,2]
[310004701,1704283956512,-209.0,0.0003452,2]
[310004702,1704283956523,-209.0,0.0003452,2]
[310004703,1704283956539,-207.0,0.0003452,2]
[310004704,1704283956551,-206.0,0.0003452,2]
[310004705,1704283956563,-8946.44524781,0.00034525,6]
[310004706,1704283956575,-150.71580004,0.0003457,2]
[310004707,1704283956586,-459.91,0.00034579,2]
[310004708,1704283956597,-350.84,0.00034588,2]
[310004709,1704283956608,-153.84,0.00034588,2]
[310004710,1704283956620,-206.0,0.00034613,10]
[310004711,1704283956631,-456.122772,0.00034643,2]
[310004712,1704283956642,-467.327823,0.00034643,2]
[310004713,1704283956652,-456.073485,0.00034643,2]
[310004714,1704283956664,-228.036742,0.00034643,2]
[310004715,1704283956674,-178.69908155,0.00034654,7]
[310004716,1704283956687,-180.0,0.00034658,2]
[310004717,1704283956699,-208.0,0.0003469,2]
[310004718,1704283956710,-208.0,0.0003469,2]
[310004719,1704283956722,-199.070161,0.00034692,2]
[310004720,1704283956732,-151.40103,0.00034698,2]
[310004721,1704283956743,-300.0,0.000347,15]
[310004722,1704283956754,-300.0,0.000347,15]
[310004723,1704283956766,-8946.44524781,0.000347,7]
[310004724,1704283956778,-16037.3687941,0.00034726,2]
[310004725,1704283956788,-14827.1269416,0.00034726,2]
[310004726,1704283956799,-308.3409202,0.00034726,2]
[310004727,1704283956810,-286.8207483,0.00034726,2]
[310004728,1704283956821,-2145.4486405,0.00034726,2]
[310004729,1704283956831,-1995.710411,0.00034726,2]
[310004730,1704283956842,-1763.2590352,0.00034726,2]
[310004731,1704283956853,-1640.195131,0.00034726,2]
[310004732,1704283956864,-353.3669294,0.00034726,2]
[310004733,1704283956877,-328.7042377,0.00034726,2]
[310004734,1704283956888,-73998.9140949,0.00034726,2]
[310004735,1704283956899,-68542.065799,0.00034726,2]
[310004736,1704283956910,-8020.603261,0.00034726,2]
[310004737,1704283956922,-7429.1457272,0.00034726,2]
[310004738,1704283956933,-10000.0,0.00034731,2]
[310004739,1704283956945,-97612.41324559,0.0003475,2]
[310004740,1704283956963,-378.96204266,0.0003475,2]
[310004741,1704283956979,-411.2945,0.0003475,2]
[310004742,1704283956992,-497611.63804825,0.0003475,2]
[310004743,1704283957009,-1804.99251863,0.0003475,2]
[310004744,1704283957023,-40118.3500634,0.0003475,2]
[310004745,1704283957040,-3039.57534485,0.0003475,2]
[310004746,1704283957058,-4257.59176705,0.0003475,2]
[310004747,1704283957072,-988.67004795,0.0003475,2]
[310004748,1704283957085,-527.07841529,0.0003475,2]
[310004749,1704283957098,-42993.09882966,0.0003475,2]
[310004750,1704283957112,-16649.9999,0.0003475,2]
[310004751,1704283957124,-1205.1058439,0.0003475,2]
[310004752,1704283957139,-12518.24658783,0.0003475,2]
[310004753,1704283957153,-6590.38380002,0.0003475,2]
[310004754,1704283957166,-349.95,0.0003475,2]
[310004755,1704283957182,-1148.68411142,0.0003475,2]
[310004756,1704283957196,-264.73885189,0.0003475,2]
[310004757,1704283957210,-504.07905339,0.0003475,2]
[310004758,1704283957224,-556.94463584,0.0003475,2]
[310004759,1704283957236,-140868.27677968,0.0003475,2]
[310004760,1704283957249,-1478.37000005,0.0003475,2]
[310004761,1704283957262,-1972.9115181,0.0003475,2]
[310004762,1704283957274,-9138.59999998,0.0003475,2]
[310004763,1704283957289,-8080.0,0.0003475,2]
[310004764,1704283957302,-477.35188873,0.0003475,2]
[310004765,1704283957315,-1028.06765634,0.0003475,2]
[310004766,1704283957326,-3085.12553012,0.0003475,2]
[310004767,1704283957339,-7384.90931969,0.0003475,2]
[310004768,1704283957352,-1356.54202793,0.0003475,2]
[310004769,1704283957364,-362.54094196,0.0003475,2]
[310004770,1704283957377,-345.381997,0.0003475,2]
[310004771,1704283957391,-589.79874225,0.0003475,2]
[310004772,1704283957404,-1281.51,0.0003475,2]
[310004773,1704283957418,-29774.29470001,0.0003475,2]
[310004774,1704283957431,-48418.00000009,0.0003475,2]
[310004775,1704283957444,-395.91534503,0.0003475,2]
[310004776,1704283957458,-12105.79226862,0.0003475,2]
[310004777,1704283957471,-4376.30088657,0.0003475,2]
[310004778,1704283957484,-41000.0,0.0003475,2]
[310004779,1704283957498,-8644.1,0.0003475,2]
[310004780,1704283957512,-6612.2428,0.0003475,2]
[310004781,1704283957528,-420.77991613,0.0003475,2]
[310004782,1704283957682,-500.0,0.00032876,2]
[310004783,1704283957697,-899.62,0.00032876,2]
[310004784,1704283957709,-100595.57686042,0.0003475,2]
[310004785,1704283957854,-203.07724,0.00027873,2]
[310004786,1704283957865,-105.42276,0.00032809,2]
[310004787,1704283958592,-44.57724,0.00032809,2]
[310004788,1704283958604,-150.0,0.00032809,2]
[310004789,1704283958615,-488.30332573,0.00032876,2]
[310004790,1704283959639,-11.69667427,0.00032876,2]
[310004791,1704283959651,-899.62,0.00032876,2]
[310004792,1704283959662,-500.0,0.00032876,2]
[310004793,1704283959674,-899.62,0.00032876,2]
[310004794,1704283959686,-500.0,0.00032876,2]
[310004795,1704283959697,-500.0,0.00032876,2]
[310004796,1704283959708,-500.0,0.00032876,2]
[310004797,1704283959719,-899.62,0.00032876,2]
[310004798,1704283959731,-744352.83848918,0.0003475,2]
[310004799,1704283959745,-857.0,0.0003475,2]
[310004800,1704283959850,-1157.84751611,0.00029996,2]
[310004801,1704283959861,-150.0,0.00031899,2]
[310004802,1704283959872,-150.0,0.00031999,2]
[310004803,1704283959885,-500.0,0.00032876,2]
[310004804,1704283959896,-500.0,0.00032876,2]
[310004805,1704283959908,-899.62,0.00032876,2]
[310004806,1704283959920,-500.0,0.00032876,2]
[310004807,1704283959932,-500.0,0.00032876,2]
[310004808,1704283959943,-899.62,0.00032876,2]
[310004809,1704283959955,-500.0,0.00032876,2]
[310004810,1704283959965,-2426.57891069,0.0003475,2]
[310004811,1704283959981,-995.23615756,0.0003475,2]
[310004812,1704283959995,-1272.77679054,0.0003475,2]
[310004813,1704283960009,-1412.18415497,0.0003475,2]
[310004814,1704283960022,-266.81357825,0.0003475,2]
[310004815,1704283960038,-293.2875015,0.0003475,2]
[310004816,1704283960052,-6167.39875317,0.0003475,2]
[310004817,1704283960067,-2100.0,0.0003475,2]
[310004818,1704283960080,-293.0,0.0003475,2]
[310004819,1704283960094,-2044.80001,0.0003475,2]
[310004820,1704283960112,-318.7617,0.0003475,2]
[310004821,1704283960152,-500.0,0.00032876,2]
[310004822,1704283960164,-26162.01234085,0.0003475,2]
[310004823,1704283960179,-354.68122052,0.0003475,2]
[310004824,1704283960194,-427.44100002,0.0003475,2]
[310004825,1704283960208,-14926.13050136,0.0003475,2]
[310004826,1704283960221,-7504.67261021,0.0003475,2]
[310004827,1704283960236,-3826.47912476,0.0003475,2]
[310004828,1704283960249,-7671.52385082,0.0003475,2]
[310004829,1704283960262,-3285.96404093,0.0003475,2]
[310004830,1704283960276,-10464.17569442,0.0003475,2]
[310004831,1704283960499,-388.70223174,0.0003475,2]
[310004832,1704283960513,-3243.92186705,0.0003475,2]
[310004833,1704283960525,-3810.75520183,0.0003475,2]
[310004834,1704283960544,-3564.21320646,0.0003475,2]
[310004835,1704283960558,-5637.37527943,0.0003475,2]
[310004836,1704283960586,-438300.00000002,0.0003475,2]
[310004837,1704283960601,-43816.77430001,0.0003475,2]
[310004838,1704283960614,-10810.8,0.0003475,2]
[310004839,1704283960627,-1382.21999924,0.0003475,2]
[310004840,1704283960646,-475550.41895361,0.0003475,2]
[310004841,1704283960660,-360.06215468,0.0003475,2]
[310004842,1704283960674,-43793.54558254,0.0003475,2]
[310004843,1704283960685,-13616.8850891,0.00034754,2]
[310004844,1704283960696,-265.3005765,0.00034754,2]
[310004845,1704283960708,-1845.9721816,0.00034754,2]
[310004846,1704283960719,-1517.1312268,0.00034754,2]
[310004847,1704283960731,-304.041546,0.00034754,2]
[310004848,1704283960742,-34701.54777613,0.00034754,2]
[310004849,1704283960756,-28383.66972707,0.00034754,2]
[310004850,1704283960767,-6837.6881933,0.00034754,2]
[310004851,1704283960780,-200.0,0.00034768,7]
[310004852,1704283960792,-200.0,0.00034768,7]
[310004853,1704283960804,-658.71,0.00034769,2]
[310004854,1704283960814,-208819.71465865,0.00034778,2]
[310004855,1704283960829,-22854.13191329,0.00034778,2]
[310004856,1704283960890,-371.42381321,0.00032512,2]
[310004857,1704283960904,-633.72,0.000328,2]
[310004858,1704283960915,-500.0,0.00032876,2]
[310004859,1704283960925,-899.62,0.00032876,2]
[310004860,1704283960938,-500.0,0.00032876,2]
[310004861,1704283960950,-899.62,0.00032876,2]
[310004862,1704283960962,-636.42,0.00032877,15]
[310004863,1704283960974,-380.90749551,0.00034654,24]
[310004864,1704283960985,-5078.1400839,0.00034778,2]
[310004865,1704283960999,-11670.86177097,0.00034778,2]
[310004866,1704283961014,-2685.08432572,0.00034778,2]
[310004867,1704283961030,-1935.35920485,0.00034778,2]
[310004868,1704283961044,-1735.63807858,0.00034778,2]
[310004869,1704283961057,-624228.7554458,0.00034778,2]
[310004870,1704283961070,-103002.49155119,0.00034778,2]
[310004871,1704283961084,-49434.56360552,0.00034778,2]
[310004872,1704283961098,-107231.66092394,0.00034778,2]
[310004873,1704283961116,-12497.90345784,0.00034778,2]
[310004874,1704283961130,-95491.53118789,0.00034778,2]
[310004875,1704283961144,-1998.76877555,0.00034778,2]
[310004876,1704283961157,-2827.14720934,0.00034778,2]
[310004877,1704283961173,-75801.78588393,0.00034778,2]
[310004878,1704283961185,-4160.3451013,0.00034779,10]
[310004879,1704283961197,-10735.64620039,0.00034779,10]
[310004880,1704283961211,-11359.10370865,0.00034779,10]
[310004881,1704283961462,-61.89768837,0.00034779,10]
[310004882,1704283961473,-1105.24,0.00034793,3]
[310004883,1704283961484,-43881.391856,0.00034794,2]
[310004884,1704283961495,-6394.005624,0.00034794,2]
[310004885,1704283961507,-941.0,0.00034794,2]
[310004886,1704283961519,-151.40103,0.00034798,2]
[310004887,1704283961533,-200000.0,0.000348,7]
[310004888,1704283961547,-1028.16,0.000348,2]
[310004889,1704283961559,-2422.30407869,0.000348,2]
[310004890,1704283961569,-515.0,0.000348,23]
[310004891,1704283961581,-3827.52355312,0.000348,3]
[310004892,1704283961592,-1000.0,0.000348,16]
[310004893,1704283961603,-275.5,0.000348,2]
[310004894,1704283961614,-366.99,0.00034844,2]
[310004895,1704283961625,-50000.0,0.00034845,10]
[310004896,1704283961639,-50000.0,0.00034845,10]
[310004897,1704283961650,-400.0,0.0003487,2]
[310004898,1704283961661,-400.0,0.0003487,2]
[310004899,1704283961672,-441.80730822,0.0003487,2]
[310004900,1704283961683,-500.0,0.00034877,2]
[310004901,1704283961694,-158.27030452,0.00034878,4]
[310004902,1704283961705,-500.0,0.00034879,4]
[310004903,1704283961716,-500.0,0.00034879,4]
[310004904,1704283961727,-500.0,0.00034879,4]
[310004905,1704283961740,-500.0,0.00034879,2]
[310004906,1704283961751,-500.0,0.00034879,2]
[310004907,1704283961763,-59707.57213737,0.0003488,3]
[310004908,1704283961777,-1200.6250027,0.0003488,3]
[310004909,1704283961793,-809.9999996,0.0003488,3]
[310004910,1704283961809,-560.62112813,0.0003488,3]
[310004911,1704283961901,-459.27060406,0.00032876,2]
[310004912,1704283961916,-40.72939594,0.00032876,2]
[310004913,1704283961928,-500.0,0.00032876,2]
[310004914,1704283961939,-500.0,0.00032876,2]
[310004915,1704283961951,-899.62,0.00032876,2]
[310004916,1704283961962,-500.0,0.00032876,2]
[310004917,1704283961973,-21838.65059956,0.0003488,3]
[310004918,1704283961988,-52052.76604933,0.0003488,3]
[310004919,1704283962002,-284.2633,0.0003488,3]
[310004920,1704283962016,-831.7499996,0.0003488,3]
[310004921,1704283962031,-665.5871817,0.0003488,3]
[310004922,1704283962045,-12958.8159,0.0003488,3]
[310004923,1704283962648,1273.89360077,0.00021,5]
[310004924,1704283962853,-3150.175028,0.00027603,2]
[310004925,1704283962866,-8842.36089653,0.00027603,2]
[310004926,1704283962879,-997.95732003,0.00029998,4]
[310004927,1704283962890,-243.85125634,0.00029999,2]
[310004928,1704283962902,-1244.4653011,0.00029999,2]
[310004929,1704283962914,-500.0,0.00032876,2]
[310004930,1704283962925,-500.0,0.00032876,2]
[310004931,1704283962936,-899.62,0.00032876,2]
[310004932,1704283962948,-500.0,0.00032876,2]
[310004933,1704283962961,-500.0,0.00032876,2]
[310004934,1704283962981,-500.0,0.00032876,2]
[310004935,1704283962992,-507.37739236,0.00032876,2]
[310004936,1704283963004,-500.0,0.00032876,2]
[310004937,1704283963017,-899.62,0.00032876,2]
[310004938,1704283963031,-500.0,0.00032876,2]
[310004939,1704283963042,-500.0,0.00032876,2]
[310004940,1704283963054,-500.0,0.00032876,2]
[310004941,1704283963066,-899.62,0.00032876,2]
[310004942,1704283963088,-500.0,0.00032876,2]
[310004943,1704283963099,-500.0,0.00032876,2]
[310004944,1704283963110,-500.0,0.00032876,2]
[310004945,1704283963121,-500.0,0.00032876,2]
[310004946,1704283963132,-899.62,0.00032876,2]
[310004947,1704283963144,-500.0,0.00032876,2]
[310004948,1704283963155,-500.0,0.00032876,2]
[310004949,1704283963167,-500.0,0.00032876,2]
[310004950,1704283963179,-500.0,0.00032876,2]
[310004951,1704283963191,-500.0,0.00032876,2]